bitfinex-derivatives/quotes_BTCF0:USTF0_20241128
["timestamp","ask_amount","ask_price","bid_price","bid_amount"]
[1732768488672,0.00013353,95770.0,95769.0,0.38187084]
[1732768489173,0.05229153,95770.0,95769.0,0.37718364]
[1732768489373,0.05229153,95770.0,95769.0,0.367399]
[1732768490265,0.05229153,95770.0,95769.0,0.053159]
[1732768491167,0.05329153,95770.0,95769.0,0.053159]
[1732768491368,0.05429153,95770.0,95769.0,0.052159]
[1732768492771,0.05329153,95770.0,95769.0,0.052159]
[1732768492967,0.05429153,95770.0,95769.0,0.052159]
[1732768493667,0.05329153,95770.0,95769.0,0.052159]
[1732768494573,0.05429153,95770.0,95769.0,0.365399]
[1732768495068,0.05429153,95770.0,95769.0,0.052159]
[1732768495959,0.05329153,95770.0,95769.0,0.052159]
[1732768496161,0.05429153,95770.0,95769.0,0.052159]
[1732768496364,0.05429153,95770.0,95769.0,0.0667035]
[1732768496767,0.00113353,95770.0,95769.0,0.0667035]
[1732768497070,0.00213353,95770.0,95769.0,0.06672064]
[1732768497669,0.00113353,95770.0,95769.0,0.06672064]
[1732768498365,0.00113353,95770.0,95769.0,0.07650569]
[1732768498566,0.00113353,95770.0,95769.0,0.31538181]
[1732768499173,0.00113353,95770.0,95769.0,0.31638181]
[1732768499174,0.00013353,95770.0,95769.0,0.31638181]
[1732768499371,0.00013353,95770.0,95769.0,0.09113599]
[1732768499980,0.00013353,95770.0,95769.0,0.09992104]
[1732768500274,0.00013353,95770.0,95769.0,0.10192104]
[1732768500862,0.00013353,95770.0,95769.0,0.10292104]
[1732768501472,0.00113353,95770.0,95769.0,0.10092104]
[1732768502373,0.00113353,95770.0,95769.0,0.41051974]
[1732768502873,0.00113353,95770.0,95769.0,0.4096638]
[1732768503077,0.00213353,95770.0,95769.0,0.4096638]
[1732768503382,0.00213353,95770.0,95769.0,0.50655656]
[1732768503880,0.00013353,95770.0,95769.0,0.50655656]
[1732768505579,0.00013353,95770.0,95769.0,0.49677151]
[1732768506274,0.00013353,95770.0,95769.0,0.49681581]
[1732768506473,0.00013353,95770.0,95769.0,0.52704081]
[1732768507075,0.00013353,95770.0,95769.0,0.52804081]
[1732768507374,0.00013353,95770.0,95769.0,0.53004081]
[1732768508375,0.00013353,95770.0,95769.0,0.5398256]
[1732768510485,0.00013353,95770.0,95769.0,0.5096006]
[1732768510682,0.00013353,95770.0,95769.0,0.49981581]
[1732768511275,0.00013353,95770.0,95769.0,0.5392837]
[1732768512990,0.0303,95774.0,95769.0,0.5392837]
[1732768513177,0.0303,95774.0,95773.0,0.052157]
[1732768513496,0.0303,95774.0,95773.0,0.53710966]
[1732768514087,0.00012542,95789.0,95788.0,0.052149]
[1732768514284,0.00012542,95789.0,95788.0,0.412949]
[1732768514488,0.0304,95793.0,95792.0,0.052146]
[1732768514787,0.0304,95793.0,95792.0,0.53641281]
[1732768514983,0.0304,95793.0,95792.0,0.7808964]
[1732768515189,0.0304,95793.0,95792.0,1.09148777]
[1732768515393,0.0304,95793.0,95792.0,0.37509079]
[1732768515986,0.0304,95793.0,95792.0,0.365306]
[1732768516188,0.0304,95793.0,95792.0,0.06706929]
[1732768516383,0.0304,95793.0,95792.0,0.09060254]
[1732768516692,0.052142,95800.0,95799.0,0.052143]
[1732768516884,0.052142,95800.0,95799.0,0.07663351]
[1732768517297,0.052142,95800.0,95799.0,0.06685128]
[1732768517494,0.052142,95800.0,95799.0,0.01470828]
[1732768517693,0.052146,95792.0,95784.0,0.36274137]
[1732768517888,0.052149,95788.0,95787.0,0.24811115]
[1732768518089,0.052149,95788.0,95785.0,0.00978295]
[1732768518090,0.052149,95787.0,95786.0,0.24811115]
[1732768518386,0.052149,95787.0,95785.0,0.00978295]
[1732768518387,0.05215,95786.0,95783.0,0.24811115]
[1732768518586,0.0319,95787.0,95784.0,0.00978387]
[1732768518587,0.05215,95785.0,95784.0,0.00978387]
[1732768518995,0.052153,95780.0,95779.0,0.36300596]
[1732768519199,0.052153,95780.0,95779.0,0.00156596]
[1732768520494,0.053153,95780.0,95779.0,0.00156596]
[1732768520792,0.053153,95780.0,95779.0,0.05371896]
[1732768521493,0.053153,95780.0,95779.0,0.00156596]
[1732768524287,0.052157,95772.0,95771.0,0.3608]
[1732768524593,0.218117,95772.0,95771.0,0.3608]
[1732768526591,0.052157,95772.0,95771.0,0.3618]
[1732768526791,0.052155,95777.0,95775.0,0.052155]
[1732768529197,0.052155,95777.0,95776.0,0.00978407]
[1732768529699,0.053155,95777.0,95776.0,0.02398688]
[1732768531499,0.052155,95777.0,95776.0,0.02398688]
[1732768532998,0.052155,95777.0,95776.0,0.01420281]
[1732768532999,0.053155,95777.0,95776.0,0.01420281]
[1732768534491,0.001,95777.0,95776.0,0.01420281]
[1732768534808,0.001,95777.0,95776.0,0.27235443]
[1732768534991,0.001,95777.0,95776.0,0.04737669]
[1732768536801,0.21767,95785.0,95776.0,0.04737669]
[1732768536802,0.05215,95785.0,95784.0,0.052151]
[1732768537000,0.05215,95785.0,95784.0,0.07639428]
[1732768537194,0.16552,95786.0,95784.0,0.07639428]
[1732768537396,0.16552,95786.0,95785.0,0.02424328]
[1732768537607,0.16552,95786.0,95785.0,0.01445891]
[1732768539901,0.16652,95786.0,95785.0,0.01445891]
[1732768540205,0.001,95786.0,95785.0,0.01445891]
[1732768540608,0.0647,95806.0,95785.0,0.3754228]
[1732768540799,0.116839,95806.0,95805.0,0.052139]
[1732768541294,0.116839,95806.0,95805.0,0.06674078]
[1732768541904,0.116839,95806.0,95805.0,0.052139]
[1732768542102,0.116839,95806.0,95805.0,0.06678419]
[1732768542610,0.116839,95806.0,95805.0,0.06778419]
[1732768542807,0.116839,95806.0,95805.0,0.06878419]
[1732768543998,0.0327,95806.0,95805.0,0.06878419]
[1732768544198,0.00013532,95807.0,95805.0,0.06878419]
[1732768544403,0.00013532,95807.0,95806.0,0.02442638]
[1732768544611,0.00013532,95807.0,95806.0,0.01464519]
[1732768544801,0.00013532,95807.0,95806.0,0.0244261]
[1732768545004,0.00013532,95807.0,95806.0,0.02451777]
[1732768545400,0.00013532,95807.0,95806.0,0.21019901]
[1732768546112,0.00013532,95807.0,95806.0,0.21219901]
[1732768547511,0.00013532,95807.0,95806.0,0.02651777]
[1732768548308,0.05227332,95807.0,95806.0,0.01178091]
[1732768548811,0.05227332,95807.0,95806.0,0.0639203]
[1732768549312,0.05227332,95807.0,95806.0,0.054139]
[1732768551107,0.05227332,95807.0,95806.0,0.002]
[1732768551701,0.05227332,95807.0,95806.0,0.06392001]
[1732768552404,0.05227332,95807.0,95806.0,0.002]
[1732768552705,0.05227332,95807.0,95806.0,0.01666828]
[1732768553307,0.00013532,95807.0,95806.0,0.01666828]
[1732768554819,0.00013532,95807.0,95806.0,0.05009677]
[1732768555112,0.0316,95821.0,95806.0,0.05009677]
[1732768555302,0.0316,95821.0,95820.0,0.412931]
[1732768556611,0.0316,95821.0,95820.0,0.42759728]
[1732768557418,0.0316,95821.0,95820.0,0.43659728]
[1732768557720,0.0316,95821.0,95820.0,0.02366628]
[1732768558013,0.0951,95821.0,95820.0,0.018]
[1732768558916,0.147231,95821.0,95820.0,0.018]
[1732768560311,0.114931,95821.0,95820.0,0.018]
[1732768561305,0.083731,95821.0,95820.0,0.070131]
[1732768562913,0.052131,95821.0,95820.0,0.070131]
[1732768563114,0.217128,95826.0,95825.0,0.052128]
[1732768564410,0.052128,95826.0,95825.0,0.061128]
[1732768565025,0.052128,95826.0,95825.0,0.070128]
[1732768567120,0.052128,95826.0,95825.0,0.018]
[1732768567919,0.052128,95826.0,95825.0,0.03266975]
[1732768568116,0.052128,95826.0,95825.0,0.08479775]
[1732768568420,0.052128,95826.0,95825.0,0.03266975]
[1732768570121,0.052128,95826.0,95825.0,0.08479775]
[1732768570724,0.052128,95826.0,95825.0,0.0945774]
[1732768571321,0.052128,95826.0,95825.0,0.09461017]
[1732768571520,0.052128,95826.0,95825.0,0.08483052]
[1732768573415,0.052128,95826.0,95825.0,0.03270252]
[1732768576416,0.052128,95826.0,95825.0,0.21879439]
[1732768576621,0.052128,95826.0,95825.0,0.03270252]
[1732768576923,0.052128,95826.0,95825.0,0.018]
[1732768578227,0.052128,95826.0,95825.0,0.03273978]
[1732768579729,0.052128,95826.0,95825.0,0.03273506]
[1732768580524,0.052128,95826.0,95825.0,0.018]
[1732768580721,0.083428,95826.0,95825.0,0.018]
[1732768582435,0.083428,95826.0,95825.0,0.03281116]
[1732768583240,0.083428,95826.0,95825.0,0.03281461]
[1732768586526,0.083428,95826.0,95825.0,0.21896443]
[1732768587426,0.083428,95826.0,95825.0,0.03281461]
[1732768590749,0.052128,95826.0,95825.0,0.03281461]
[1732768591427,0.216648,95826.0,95825.0,0.03281461]
[1732768591625,0.052128,95826.0,95825.0,0.03281461]
[1732768591827,0.216648,95826.0,95825.0,0.08494261]
[1732768592936,0.216648,95826.0,95825.0,0.35703555]
[1732768593135,0.216648,95826.0,95825.0,0.33327819]
[1732768593336,0.216648,95826.0,95825.0,0.33328173]
[1732768593530,0.216648,95826.0,95825.0,0.08494261]
[1732768594234,0.052128,95826.0,95825.0,0.08494261]
[1732768594735,0.052128,95826.0,95825.0,0.10864454]
[1732768595138,0.052128,95826.0,95825.0,0.08494261]
[1732768596638,0.052128,95826.0,95825.0,0.10866503]
[1732768596845,0.052128,95826.0,95825.0,0.10867697]
[1732768598250,0.052128,95826.0,95825.0,0.08495453]
[1732768599544,0.052128,95826.0,95825.0,0.09473437]
[1732768600336,0.052128,95826.0,95825.0,0.0947859]
[1732768601337,0.01952852,95826.0,95825.0,0.09804584]
[1732768601638,7.528e-05,95827.0,95825.0,0.09804584]
[1732768601848,0.05220228,95827.0,95826.0,0.02791784]
[1732768602144,0.05220228,95827.0,95826.0,0.08004584]
[1732768602336,0.05220228,95827.0,95826.0,0.0767859]
[1732768602539,0.05220228,95827.0,95826.0,0.26303955]
[1732768603137,0.05220228,95827.0,95826.0,0.27203955]
[1732768603343,0.05220228,95827.0,95826.0,0.44984583]
[1732768603641,7.528e-05,95827.0,95826.0,0.47422648]
[1732768603843,0.3608,95836.0,95826.0,0.87970251]
[1732768604141,0.052121,95839.0,95838.0,0.052121]
[1732768604445,0.052121,95839.0,95838.0,0.08026027]
[1732768604635,0.052121,95839.0,95838.0,0.07048043]
[1732768604835,0.052121,95839.0,95838.0,0.08025912]
[1732768605544,0.052121,95839.0,95838.0,0.11228262]
[1732768605844,0.00010432,95842.0,95841.0,0.05212]
[1732768606238,0.00010432,95842.0,95841.0,0.08025812]
[1732768606437,0.00010432,95842.0,95841.0,0.2663128]
[1732768606739,0.00010432,95842.0,95841.0,0.09463604]
[1732768607141,0.00010432,95842.0,95841.0,0.06437926]
[1732768607342,0.00010432,95842.0,95841.0,0.10363141]
[1732768607739,0.00010432,95842.0,95841.0,0.11063141]
[1732768607939,0.00010432,95842.0,95841.0,0.12040924]
[1732768608337,0.00010432,95842.0,95841.0,0.28934482]
[1732768608641,0.00010432,95842.0,95841.0,0.27227871]
[1732768608835,0.00010432,95842.0,95841.0,0.10149837]
[1732768609043,0.00010432,95842.0,95841.0,0.08642468]
[1732768610540,0.00010432,95842.0,95841.0,0.07137926]
[1732768610849,0.00010432,95842.0,95841.0,0.08642771]
[1732768611053,0.0301,95849.0,95841.0,0.08642771]
[1732768611054,0.43824,95877.0,95841.0,0.03430771]
[1732768611342,0.16452,95876.0,95860.0,0.08229641]
[1732768611544,0.052109,95862.0,95861.0,0.08996005]
[1732768611737,0.02085984,95869.0,95861.0,0.08996005]
[1732768611738,0.01692039,95869.0,95861.0,0.08996005]
[1732768612147,0.052107,95864.0,95862.0,0.08996005]
[1732768612447,0.052112,95855.0,95850.0,0.08229641]
[1732768612647,0.052112,95855.0,95851.0,0.06061561]
[1732768612944,0.052112,95855.0,95852.0,0.06061561]
[1732768613150,0.052112,95855.0,95853.0,0.06061561]
[1732768613348,0.247528,95863.0,95862.0,0.009]
[1732768613539,0.216628,95863.0,95862.0,0.03376764]
[1732768613740,0.052108,95863.0,95862.0,0.04354389]
[1732768614045,0.16452,95863.0,95862.0,0.06961262]
[1732768615054,0.16457859,95865.0,95862.0,0.06961262]
[1732768615352,9.859e-05,95865.0,95863.0,0.06061262]
[1732768615647,9.859e-05,95865.0,95864.0,0.05083637]
[1732768616045,0.16405859,95865.0,95864.0,0.05083637]
[1732768616448,9.859e-05,95865.0,95864.0,0.10294337]
[1732768616744,0.16405859,95865.0,95864.0,0.10294337]
[1732768616937,0.16405859,95865.0,95864.0,0.11194337]
[1732768617140,9.859e-05,95865.0,95864.0,0.11194337]
[1732768618048,9.859e-05,95865.0,95864.0,0.12094337]
[1732768618947,9.859e-05,95865.0,95864.0,0.48174337]
[1732768619252,9.859e-05,95865.0,95864.0,0.49164987]
[1732768619547,9.859e-05,95865.0,95864.0,0.52423217]
[1732768620246,0.16396,95878.0,95876.0,0.0521]
[1732768620449,0.16396,95878.0,95877.0,0.36927223]
[1732768620764,0.16396,95878.0,95877.0,0.41162757]
[1732768621545,0.16396,95878.0,95877.0,0.05982757]
[1732768621749,0.16396,95878.0,95877.0,0.02529051]
[1732768622449,0.16396,95878.0,95877.0,0.009]
[1732768623546,0.16396,95878.0,95877.0,0.03429293]
[1732768625054,0.16396,95878.0,95877.0,0.018]
[1732768625256,0.052107,95865.0,95864.0,0.00013133]
[1732768625439,0.412907,95865.0,95864.0,0.01642576]
[1732768627252,0.412907,95865.0,95864.0,0.03442576]
[1732768627253,0.413907,95865.0,95864.0,0.03442576]
[1732768628347,0.577867,95865.0,95864.0,0.03442576]
[1732768628549,0.59259274,95865.0,95864.0,0.03442576]
[1732768629547,0.59259274,95865.0,95864.0,0.03442585]
[1732768630348,0.59259274,95865.0,95864.0,0.05072039]
[1732768631551,0.59259274,95865.0,95864.0,0.03442585]
[1732768632456,0.59259274,95865.0,95864.0,0.05072138]
[1732768633643,0.42863274,95865.0,95864.0,0.05072138]
[1732768634048,0.59259274,95865.0,95864.0,0.05072138]
[1732768634459,0.59259274,95865.0,95864.0,0.07677061]
[1732768634755,0.59259274,95865.0,95864.0,0.08002943]
[1732768634952,0.06783274,95865.0,95864.0,0.08002943]
[1732768635152,0.23179274,95865.0,95864.0,0.08002943]
[1732768635849,0.23179274,95865.0,95864.0,0.13213643]
[1732768636755,0.23179274,95865.0,95864.0,0.13215358]
[1732768637852,0.23179274,95865.0,95864.0,0.08004658]
[1732768638564,0.23179274,95865.0,95864.0,0.03442585]
[1732768638862,0.23179274,95865.0,95864.0,0.05071926]
[1732768639060,0.23179274,95865.0,95864.0,0.07678872]
[1732768639856,0.06783274,95865.0,95864.0,0.03768453]
[1732768640052,0.23179274,95865.0,95864.0,0.03768453]
[1732768640652,0.23179274,95865.0,95864.0,0.0474606]
[1732768641155,0.17968574,95865.0,95864.0,0.07956395]
[1732768641861,0.17968574,95865.0,95864.0,0.05053332]
[1732768642454,0.23179274,95865.0,95864.0,0.05053332]
[1732768643269,0.38079274,95865.0,95864.0,0.00063332]
[1732768643453,0.052113,95853.0,95852.0,0.3608]
[1732768644756,0.061113,95853.0,95852.0,0.3618]
[1732768645265,0.225073,95853.0,95852.0,0.3618]
[1732768646158,0.234073,95853.0,95852.0,0.3628]
[1732768646358,0.233633,95853.0,95852.0,0.3628]
[1732768647461,0.070113,95853.0,95852.0,0.3628]
[1732768647664,0.233633,95853.0,95852.0,0.3628]
[1732768651970,0.233633,95853.0,95852.0,0.38725271]
[1732768652763,0.233633,95853.0,95852.0,0.3628]
[1732768655457,0.233633,95853.0,95852.0,0.37779279]
[1732768655659,0.233633,95853.0,95852.0,0.38757004]
[1732768655863,0.233633,95853.0,95852.0,0.37779279]
[1732768656163,0.233633,95853.0,95852.0,0.01699279]
[1732768656463,0.233633,95853.0,95852.0,0.002]
[1732768659760,0.233633,95853.0,95852.0,0.01679951]
[1732768661165,0.233633,95853.0,95852.0,0.002]
[1732768661472,0.233633,95853.0,95852.0,0.0166536]
[1732768663668,0.907433,95853.0,95852.0,0.002]
[1732768664867,0.052116,95847.0,95846.0,8.074e-05]
[1732768665362,0.365116,95847.0,95846.0,8.074e-05]
[1732768665556,0.365116,95847.0,95830.0,0.18628175]
[1732768665762,0.052125,95832.0,95831.0,0.01303973]
[1732768665957,0.215645,95832.0,95831.0,0.01303973]
[1732768666160,0.215645,95832.0,95831.0,0.00325989]
[1732768666764,0.215645,95832.0,95831.0,0.01303986]
[1732768666958,0.219645,95832.0,95831.0,0.01303986]
[1732768667265,0.18252203,95832.0,95831.0,0.01303986]
[1732768667461,0.18252203,95832.0,95831.0,0.00325989]
[1732768667760,0.052126,95830.0,95829.0,0.00012485]
[1732768668165,0.052126,95830.0,95829.0,0.01511486]
[1732768669965,0.056126,95830.0,95829.0,0.01511486]
[1732768670458,0.060126,95830.0,95829.0,0.01511486]
[1732768670862,0.060126,95830.0,95829.0,0.01837477]
[1732768671575,0.060126,95830.0,95829.0,0.01851574]
[1732768672570,0.008,95830.0,95829.0,0.01851574]
[1732768673470,0.17156,95830.0,95829.0,0.05131574]
[1732768673870,0.17156,95830.0,95829.0,0.07558863]
[1732768674771,0.223686,95830.0,95829.0,0.08831076]
[1732768674966,0.060126,95830.0,95829.0,0.31384495]
[1732768675170,0.060126,95830.0,95829.0,0.12781174]
[1732768675171,0.223686,95830.0,95829.0,0.12781174]
[1732768675372,0.223686,95830.0,95829.0,0.10350345]
[1732768675669,0.223686,95830.0,95829.0,0.28953278]
[1732768675869,0.223686,95830.0,95829.0,0.12790184]
[1732768676269,0.223246,95830.0,95829.0,0.12790184]
[1732768678169,0.223246,95830.0,95829.0,0.08505085]
[1732768678370,0.223246,95830.0,95829.0,0.12821301]
[1732768678873,0.17112,95830.0,95829.0,0.12821301]
[1732768680078,0.17312,95830.0,95829.0,0.12921301]
[1732768680681,0.16812,95830.0,95829.0,0.12921301]
[1732768680866,0.17312,95830.0,95829.0,0.13021301]
[1732768681372,0.225246,95830.0,95829.0,0.13021301]
[1732768681574,0.223246,95830.0,95829.0,0.12921301]
[1732768681971,0.060126,95830.0,95829.0,0.12921301]
[1732768682171,0.17112,95830.0,95829.0,0.12921301]
[1732768682377,0.17212,95830.0,95829.0,0.12821301]
[1732768683079,0.17312,95830.0,95829.0,0.12821301]
[1732768683782,0.225246,95830.0,95829.0,0.12821301]
[1732768684174,0.062126,95830.0,95829.0,0.12821301]
[1732768684369,0.061126,95830.0,95829.0,0.12821301]
[1732768684576,0.02852904,95830.0,95829.0,0.12821301]
[1732768684879,0.03352904,95830.0,95829.0,0.12595329]
[1732768685477,0.19664904,95830.0,95829.0,0.12595329]
[1732768685780,0.19664904,95830.0,95829.0,0.38659493]
[1732768686083,0.011,95830.0,95829.0,0.38659493]
[1732768686475,0.011,95830.0,95829.0,0.38704999]
[1732768686670,0.005,95830.0,95829.0,0.13999206]
[1732768686882,0.013,95830.0,95829.0,0.13999206]
[1732768687381,0.011,95830.0,95829.0,0.13999206]
[1732768687682,0.011,95830.0,95829.0,0.14000948]
[1732768688081,0.49092301,95835.0,95829.0,0.11775325]
[1732768688274,0.490323,95835.0,95834.0,0.052124]
[1732768688475,0.653443,95835.0,95834.0,0.10508263]
[1732768688681,0.653443,95835.0,95834.0,0.09530355]
[1732768689184,0.653443,95835.0,95834.0,0.09530338]
[1732768689986,0.658443,95835.0,95834.0,0.09530338]
[1732768691079,0.653443,95835.0,95834.0,0.09530338]
[1732768691280,0.658443,95835.0,95834.0,0.09530338]
[1732768691480,0.662443,95835.0,95834.0,0.09530338]
[1732768691982,0.4472,95835.0,95834.0,0.09530338]
[1732768692185,0.02128264,95853.0,95834.0,0.09530338]
[1732768692186,0.00156551,95852.0,95834.0,0.07424599]
[1732768692385,0.00156551,95852.0,95846.0,0.3608]
[1732768692587,0.00156551,95852.0,95851.0,0.2382375]
[1732768692782,0.00156551,95852.0,95851.0,0.10554061]
[1732768692983,0.05367951,95852.0,95851.0,0.10554061]
[1732768693287,0.05367951,95852.0,95851.0,0.29155098]
[1732768693588,0.05367951,95852.0,95851.0,0.35370527]
[1732768693589,0.21679951,95852.0,95851.0,0.35370527]
[1732768693784,0.21679951,95852.0,95851.0,0.34066763]
[1732768694184,0.22579951,95852.0,95851.0,0.09350297]
[1732768695198,0.23379951,95852.0,95851.0,0.09450297]
[1732768696087,0.18168551,95852.0,95851.0,0.09450297]
[1732768696791,0.01856551,95852.0,95851.0,0.09450297]
[1732768696985,0.01856551,95852.0,95851.0,0.34266763]
[1732768697684,0.01856551,95852.0,95851.0,0.10427919]
[1732768698079,0.01856551,95852.0,95851.0,0.13470108]
[1732768698386,0.01856551,95852.0,95851.0,0.13469374]
[1732768699586,0.01856551,95852.0,95851.0,0.09450297]
[1732768700182,0.01856551,95852.0,95851.0,0.40750297]
[1732768701185,0.01856551,95852.0,95851.0,0.40651219]
[1732768703499,0.01856551,95852.0,95851.0,0.41628787]
[1732768703793,0.16308,95861.0,95860.0,0.052109]
[1732768703988,0.16308,95861.0,95860.0,0.43783783]
[1732768704192,0.16308,95861.0,95860.0,0.38572883]
[1732768704393,0.16308,95861.0,95860.0,0.37057568]
[1732768704589,0.16308,95861.0,95860.0,0.38571908]
[1732768704985,0.16408,95861.0,95860.0,0.37957568]
[1732768705493,0.16408,95861.0,95860.0,0.38494151]
[1732768705885,0.16408,95861.0,95860.0,0.39394151]
[1732768706486,0.23048,95861.0,95860.0,0.40371759]
[1732768706886,0.19789299,95861.0,95860.0,0.40697629]
[1732768707089,0.19789299,95861.0,95860.0,0.39183478]
[1732768707400,0.19789299,95861.0,95860.0,0.39747474]
[1732768707597,0.55869299,95861.0,95860.0,0.03667474]
[1732768707899,0.55869299,95861.0,95860.0,0.018]
[1732768709093,0.13149299,95861.0,95860.0,0.018]
[1732768709294,0.13149299,95861.0,95860.0,0.03355371]
[1732768709996,0.001,95861.0,95860.0,0.08566271]
[1732768710199,0.16364,95861.0,95860.0,0.08566271]
[1732768710899,0.16364,95861.0,95860.0,0.03355371]
[1732768711294,0.215749,95861.0,95860.0,0.03355371]
[1732768711596,0.215749,95861.0,95860.0,0.08566271]
[1732768711901,0.215749,95861.0,95860.0,0.070109]
[1732768712196,0.215749,95861.0,95860.0,0.08555501]
[1732768712594,0.215749,95861.0,95860.0,0.29585526]
[1732768713196,0.215749,95861.0,95860.0,0.11021645]
[1732768713397,0.215749,95861.0,95860.0,0.29599967]
[1732768713792,0.215749,95861.0,95860.0,0.25589222]
[1732768713998,0.053109,95861.0,95860.0,0.070109]
[1732768714195,0.215749,95861.0,95860.0,0.25592333]
[1732768714893,0.215749,95861.0,95860.0,0.2960984]
[1732768715090,0.215749,95861.0,95860.0,0.2439894]
[1732768715291,0.576549,95861.0,95860.0,0.05817507]
[1732768715491,0.576549,95861.0,95860.0,0.0334319]
[1732768718704,0.576549,95861.0,95846.0,0.18581433]
[1732768718705,0.052115,95850.0,95846.0,0.18581433]
[1732768718902,0.052118,95845.0,95844.0,0.18581433]
[1732768719097,0.16264,95845.0,95843.0,0.18615942]
[1732768719300,0.052119,95842.0,95841.0,0.18615942]
[1732768719604,0.052119,95842.0,95840.0,0.18615942]
[1732768719804,0.05212,95840.0,95839.0,0.00156516]
[1732768720608,0.05212,95840.0,95829.0,0.18628427]
[1732768720609,0.052126,95830.0,95829.0,0.00012485]
[1732768720806,0.214766,95830.0,95829.0,0.00990432]
[1732768721197,0.214766,95830.0,95829.0,0.19608699]
[1732768722204,0.214766,95830.0,95829.0,0.00990432]
[1732768722804,0.214766,95830.0,95829.0,0.00012485]
[1732768723104,0.214766,95830.0,95829.0,0.18622711]
[1732768723804,0.223766,95830.0,95829.0,0.18722711]
[1732768724103,0.229766,95830.0,95829.0,0.00212485]
[1732768725701,0.067126,95830.0,95829.0,0.00212485]
[1732768725901,0.229766,95830.0,95829.0,0.00212485]
[1732768730704,0.229766,95830.0,95829.0,0.01751181]
[1732768730904,0.229766,95830.0,95829.0,0.0207717]
[1732768731411,0.590566,95830.0,95829.0,0.0207717]
[1732768731600,0.590566,95830.0,95829.0,0.01751181]
[1732768732316,0.590566,95830.0,95829.0,0.00212485]
[1732768732914,0.590566,95830.0,95829.0,0.01763811]
[1732768733412,0.590566,95830.0,95829.0,0.00212485]
[1732768734919,0.590566,95830.0,95829.0,0.01764097]
[1732768736417,0.590566,95830.0,95829.0,0.00212485]
[1732768738617,0.590566,95830.0,95829.0,0.01783918]
[1732768740019,0.427926,95830.0,95829.0,0.01783918]
[1732768740225,0.590166,95830.0,95829.0,0.01783918]
[1732768742010,0.590166,95830.0,95829.0,0.00212485]
[1732768742217,0.590166,95830.0,95829.0,0.01771382]
[1732768742527,0.590166,95830.0,95829.0,0.00212485]
[1732768742726,0.590166,95830.0,95829.0,0.01771352]
[1732768743013,0.590166,95830.0,95829.0,0.00212485]
[1732768743215,0.590166,95830.0,95829.0,0.01764625]
[1732768743716,0.427926,95830.0,95829.0,0.01764625]
[1732768744122,0.18711176,95851.0,95829.0,0.38617516]
[1732768744123,0.00064,95845.0,95829.0,0.38617516]
[1732768744311,0.3608,95862.0,95844.0,0.3608]
[1732768744312,0.052111,95858.0,95844.0,0.3608]
[1732768744512,0.052112,95855.0,95852.0,0.412914]
[1732768744711,0.052112,95855.0,95853.0,0.07637992]
[1732768744914,0.052112,95855.0,95854.0,0.01562431]
[1732768745215,0.214352,95855.0,95854.0,0.04020467]
[1732768745614,0.3608,95870.0,95854.0,0.04020467]
[1732768745615,0.052106,95866.0,95857.0,0.052111]
[1732768745917,0.052106,95866.0,95854.0,0.04020467]
[1732768745918,0.16224,95868.0,95858.0,0.04997053]
[1732768746123,0.16224,95868.0,95854.0,0.1859656]
[1732768746124,0.052109,95860.0,95859.0,0.02540107]
[1732768746511,0.214309,95860.0,95859.0,0.01562431]
[1732768746716,0.052116,95847.0,95844.0,0.00084]
[1732768746914,0.052118,95845.0,95843.0,0.1859656]
[1732768747113,0.052118,95845.0,95840.0,0.0303]
[1732768747114,0.052117,95846.0,95845.0,0.00325931]
[1732768747319,0.1622,95846.0,95845.0,0.0283389]
[1732768747516,0.214317,95846.0,95845.0,0.01856086]
[1732768747816,0.214317,95846.0,95845.0,0.20452646]
[1732768748016,0.214317,95846.0,95845.0,0.20126715]
[1732768748325,0.214317,95846.0,95845.0,0.04891462]
[1732768749017,0.214317,95846.0,95845.0,0.02430155]
[1732768749521,0.214317,95846.0,95845.0,0.02420607]
[1732768749712,0.215317,95846.0,95845.0,0.03320607]
[1732768750426,0.215317,95846.0,95845.0,0.21922929]
[1732768750819,0.215317,95846.0,95845.0,0.03320607]
[1732768751311,0.215317,95846.0,95845.0,0.018]
[1732768752515,0.22966495,95846.0,95845.0,0.018]
[1732768755715,0.22966495,95846.0,95845.0,0.03352436]
[1732768756422,0.22966495,95846.0,95845.0,0.03359352]
[1732768759822,0.22966495,95846.0,95845.0,0.018]
[1732768760026,0.22966495,95846.0,95845.0,0.03360201]
[1732768761627,0.22966495,95846.0,95845.0,0.018]
[1732768764029,0.052126,95830.0,95829.0,0.00012485]
[1732768764233,0.575126,95830.0,95829.0,0.00012485]
[1732768764533,0.575126,95830.0,95829.0,0.0190944]
[1732768765030,0.575126,95830.0,95829.0,0.01583444]
[1732768765329,0.575126,95830.0,95829.0,0.00012485]
[1732768765521,0.415926,95830.0,95829.0,0.00112485]
[1732768765724,0.055126,95830.0,95829.0,0.00112485]
[1732768765923,0.223326,95830.0,95829.0,0.01789055]
[1732768766325,0.584126,95830.0,95829.0,0.01789055]
[1732768766939,0.59883564,95830.0,95829.0,0.01789055]
[1732768767832,0.59883564,95830.0,95829.0,0.00212485]
[1732768768132,0.59883564,95830.0,95829.0,0.01780433]
[1732768769039,0.59839564,95830.0,95829.0,0.0176805]
[1732768772535,0.59839564,95830.0,95829.0,0.04253929]
[1732768772933,0.59839564,95830.0,95829.0,0.22870026]
[1732768773238,0.59839564,95830.0,95829.0,0.0176805]
[1732768773540,0.583686,95830.0,95829.0,0.0176805]
[1732768773927,0.009,95830.0,95829.0,0.0176805]
[1732768774133,0.17076,95830.0,95829.0,0.0176805]
[1732768774637,0.17076,95830.0,95829.0,0.04158242]
[1732768774839,0.17076,95830.0,95829.0,0.26519892]
[1732768775239,0.17076,95830.0,95829.0,0.0176805]
[1732768775541,0.17076,95830.0,95829.0,0.26519892]
[1732768775732,0.17076,95830.0,95829.0,0.28899091]
[1732768775934,0.17076,95830.0,95829.0,0.26451267]
[1732768776133,0.17076,95830.0,95829.0,0.01699425]
[1732768776334,0.17076,95830.0,95829.0,0.04078526]
[1732768777135,0.222886,95830.0,95829.0,0.04078526]
[1732768777535,0.222886,95830.0,95829.0,0.28910948]
[1732768777739,0.222886,95830.0,95829.0,0.26531847]
[1732768778037,0.222886,95830.0,95829.0,0.04079863]
[1732768787838,0.222886,95830.0,95829.0,0.0415926]
[1732768788845,0.222886,95830.0,95829.0,0.04162153]
[1732768789838,0.222886,95830.0,95829.0,0.04165525]
[1732768792545,0.222886,95830.0,95829.0,0.05143493]